[Event "*** Titled Tuesday 3|2 Blitz"]
[Site "Chess.com"]
[Date "2016.05.03"]
[Round "7"]
[White "hypert"]
[Black "SabinaFoisor"]
[Result "1-0"]
[WhiteElo "2348"]
[BlackElo "2192"]
[TimeControl "180+2"]
[EndTime "12:33:14 PDT"]
[Termination "hypert won by checkmate"]

1. e4 {[%clk 0:03:01.9]} 1... e6 {[%clk 0:03:00.4]} 2. d4 {[%clk 0:03:02.3]}
2... d5 {[%clk 0:03:02.3]} 3. Nc3 {[%clk 0:03:03.8]} 3... Nf6 {[%clk 0:03:02]}
4. e5 {[%clk 0:03:04.8]} 4... Nfd7 {[%clk 0:03:03]} 5. f4 {[%clk 0:03:06.4]}
5... c5 {[%clk 0:03:03.9]} 6. Nf3 {[%clk 0:03:08]} 6... Nc6 {[%clk 0:03:04.9]}
7. Be3 {[%clk 0:03:09.5]} 7... a6 {[%clk 0:03:02]} 8. Qd2 {[%clk 0:03:09.6]}
8... b5 {[%clk 0:03:02.7]} 9. a3 {[%clk 0:03:10.8]} 9... Qa5 {[%clk 0:03:02]}
10. Ra2 {[%clk 0:03:11.2]} 10... Qc7 {[%clk 0:02:57.1]} 11. Be2 {[%clk
0:03:11.8]} 11... Rb8 {[%clk 0:02:55.6]} 12. O-O {[%clk 0:03:11.2]} 12... g6
{[%clk 0:02:56.3]} 13. Nd1 {[%clk 0:03:06.9]} 13... h5 {[%clk 0:02:56.5]} 14. c3
{[%clk 0:03:06.8]} 14... Be7 {[%clk 0:02:55.4]} 15. Bf2 {[%clk 0:03:06.8]} 15...
Na5 {[%clk 0:02:54.9]} 16. Ne3 {[%clk 0:03:05.2]} 16... Nb3 {[%clk 0:02:54.8]}
17. Qd1 {[%clk 0:03:05.7]} 17... c4 {[%clk 0:02:55.9]} 18. Nd2 {[%clk
0:03:05.3]} 18... Nxd2 {[%clk 0:02:40.6]} 19. Qxd2 {[%clk 0:03:07.2]} 19... a5
{[%clk 0:02:42]} 20. Qe1 {[%clk 0:03:05.9]} 20... b4 {[%clk 0:02:42.4]} 21. axb4
{[%clk 0:03:06.8]} 21... axb4 {[%clk 0:02:44.3]} 22. Bh4 {[%clk 0:03:07.7]}
22... Qd8 {[%clk 0:02:30.6]} 23. Bxe7 {[%clk 0:03:07.4]} 23... Qxe7 {[%clk
0:02:32.5]} 24. Ra7 {[%clk 0:03:05.9]} 24... O-O {[%clk 0:02:28.6]} 25. f5
{[%clk 0:03:02.5]} 25... Qg5 {[%clk 0:02:20.3]} 26. Rf3 {[%clk 0:02:52.3]} 26...
bxc3 {[%clk 0:02:19.7]} 27. bxc3 {[%clk 0:02:47.9]} 27... h4 {[%clk 0:02:18.4]}
28. fxg6 {[%clk 0:02:29.5]} 28... fxg6 {[%clk 0:02:17.7]} 29. Qf2 {[%clk
0:02:24.3]} 29... Rb1+ {[%clk 0:02:11.7]} 30. Bf1 {[%clk 0:02:24.7]} 30... Rxf3
{[%clk 0:01:46.6]} 31. Qxf3 {[%clk 0:02:25.4]} 31... Rb7 {[%clk 0:01:26.4]} 32.
Ra2 {[%clk 0:01:48.6]} 32... Nxe5 {[%clk 0:01:03.1]} 33. dxe5 {[%clk 0:01:46.6]}
33... Rf7 {[%clk 0:01:02.3]} 34. Qe2 {[%clk 0:01:44.3]} 34... Qxe5 {[%clk
0:01:03.2]} 35. Ra8 {[%clk 0:01:37.8]} 35... Rf8 {[%clk 0:01:01.7]} 36. Ng4
{[%clk 0:01:35.1]} 36... Qxc3 {[%clk 0:00:39.8]} 37. Rxc8 {[%clk 0:01:26.7]}
37... Qd4+ {[%clk 0:00:39.9]} 38. Nf2 {[%clk 0:01:10.7]} 38... e5 {[%clk
0:00:28.5]} 39. Rxf8+ {[%clk 0:01:09.5]} 39... Kxf8 {[%clk 0:00:30.4]} 40. Qf3+
{[%clk 0:01:05.9]} 40... Ke7 {[%clk 0:00:30.3]} 41. Kh1 {[%clk 0:00:53.6]} 41...
c3 {[%clk 0:00:30.3]} 42. Ng4 {[%clk 0:00:44.4]} 42... e4 {[%clk 0:00:29.3]} 43.
Qf4 {[%clk 0:00:41]} 43... Qd2 {[%clk 0:00:20.8]} 44. Qf6+ {[%clk 0:00:36.6]}
44... Kd7 {[%clk 0:00:19]} 45. Ne5+ {[%clk 0:00:36.9]} 45... Kc7 {[%clk
0:00:20.4]} 46. Qc6+ {[%clk 0:00:37]} 46... Kb8 {[%clk 0:00:20.7]} 47. Nd7+
{[%clk 0:00:36.8]} 47... Ka7 {[%clk 0:00:22.1]} 48. Qb6+ {[%clk 0:00:37.2]}
48... Ka8 {[%clk 0:00:24]} 49. Qb8# {[%clk 0:00:36.9]} 1-0

[Event "*** Titled Tuesday 3|2 Blitz"]
[Site "Chess.com"]
[Date "2016.05.03"]
[Round "7"]
[White "Rickstereo"]
[Black "jsdbv"]
[Result "0-1"]
[WhiteElo "2200"]
[BlackElo "2331"]
[TimeControl "180+2"]
[EndTime "12:33:24 PDT"]
[Termination "jsdbv won by resignation"]

1. c4 {[%clk 0:03:01.9]} 1... e6 {[%clk 0:02:56.8]} 2. g3 {[%clk 0:02:58.8]}
2... Nf6 {[%clk 0:02:56.4]} 3. Bg2 {[%clk 0:02:57.9]} 3... d5 {[%clk 0:02:54.3]}
4. Nf3 {[%clk 0:02:57.7]} 4... dxc4 {[%clk 0:02:50]} 5. O-O {[%clk 0:02:44.8]}
5... a6 {[%clk 0:02:43.9]} 6. a4 {[%clk 0:02:41.1]} 6... Nc6 {[%clk 0:02:40.2]}
7. Qc2 {[%clk 0:02:39.4]} 7... e5 {[%clk 0:02:34.6]} 8. Qxc4 {[%clk 0:02:37]}
8... Be6 {[%clk 0:02:31.4]} 9. Qc2 {[%clk 0:02:36]} 9... e4 {[%clk 0:02:27.5]}
10. Ng5 {[%clk 0:02:20.3]} 10... Nd4 {[%clk 0:02:27.7]} 11. Nxe6 {[%clk
0:02:02.4]} 11... Nxc2 {[%clk 0:02:26.8]} 12. Nxd8 {[%clk 0:02:03.3]} 12... Nxa1
{[%clk 0:02:27.3]} 13. Nxb7 {[%clk 0:02:02.9]} 13... Rb8 {[%clk 0:02:22.7]} 14.
Na5 {[%clk 0:02:02.5]} 14... Bb4 {[%clk 0:02:22.3]} 15. Nc4 {[%clk 0:01:20.8]}
15... Nb3 {[%clk 0:02:06.8]} 16. Nc3 {[%clk 0:01:08.6]} 16... Rd8 {[%clk
0:01:55.3]} 17. Nxe4 {[%clk 0:01:00.7]} 17... Nxe4 {[%clk 0:01:50.4]} 18. Bxe4
{[%clk 0:01:00.8]} 18... Bxd2 {[%clk 0:01:48.9]} 19. Bc6+ {[%clk 0:00:59.6]}
19... Ke7 {[%clk 0:01:48.3]} 20. Nxd2 {[%clk 0:00:46.2]} 20... Nxd2 {[%clk
0:01:50.2]} 21. Re1 {[%clk 0:00:47.3]} 21... Rd6 {[%clk 0:01:18]} 22. Bg2 {[%clk
0:00:37.2]} 22... c5 {[%clk 0:01:14.3]} 23. e4 {[%clk 0:00:33.6]} 23... Rb8
{[%clk 0:01:10.4]} 24. e5 {[%clk 0:00:27.9]} 24... Rd4 {[%clk 0:01:11.1]} 25.
Bc6 {[%clk 0:00:21.3]} 25... Rb6 {[%clk 0:01:11.5]} 26. Ba8 {[%clk 0:00:19.7]}
26... a5 {[%clk 0:01:07.2]} 27. Kg2 {[%clk 0:00:20.8]} 27... Ke6 {[%clk
0:01:02.5]} 28. Re2 {[%clk 0:00:20.9]} 28... Nb3 {[%clk 0:01:00.2]} 29. Be3
{[%clk 0:00:19.3]} 29... Rc4 {[%clk 0:00:59.6]} 30. Bf3 {[%clk 0:00:15]} 30...
Rxa4 {[%clk 0:00:51.1]} 31. Rc2 {[%clk 0:00:14]} 31... Nd4 {[%clk 0:00:47.6]}
32. Rxc5 {[%clk 0:00:14.9]} 32... Nxf3 {[%clk 0:00:44.4]} 33. Kxf3 {[%clk
0:00:16.4]} 33... Rxb2 {[%clk 0:00:45.4]} 34. Rc8 {[%clk 0:00:14.1]} 34... Kxe5
{[%clk 0:00:41.4]} 35. Rh8 {[%clk 0:00:08.5]} 35... h6 {[%clk 0:00:36.9]} 36.
Rg8 {[%clk 0:00:05]} 36... g5 {[%clk 0:00:34.6]} 37. Rh8 {[%clk 0:00:04.3]}
37... g4+ {[%clk 0:00:33.2]} 38. Kg2 {[%clk 0:00:05.8]} 38... Raa2 {[%clk
0:00:29.3]} 39. Rxh6 {[%clk 0:00:05.9]} 39... Rb3 {[%clk 0:00:25.1]} 40. Bf4+
{[%clk 0:00:05.3]} 40... Ke4 {[%clk 0:00:22.5]} 0-1

[Event "*** Titled Tuesday 3|2 Blitz"]
[Site "Chess.com"]
[Date "2016.05.03"]
[Round "7"]
[White "hellokostya"]
[Black "PowerThinking2650"]
[Result "1-0"]
[WhiteElo "2292"]
[BlackElo "2178"]
[TimeControl "180+2"]
[EndTime "12:33:26 PDT"]
[Termination "hellokostya won by resignation"]

1. d4 {[%clk 0:03:01.9]} 1... Nf6 {[%clk 0:03:00.9]} 2. c4 {[%clk 0:03:01.6]}
2... g6 {[%clk 0:03:02]} 3. Nc3 {[%clk 0:03:02]} 3... Bg7 {[%clk 0:03:02.9]} 4.
e4 {[%clk 0:03:02.6]} 4... d6 {[%clk 0:03:04.4]} 5. f3 {[%clk 0:03:04.2]} 5...
O-O {[%clk 0:03:05.3]} 6. Nge2 {[%clk 0:03:05.9]} 6... Nc6 {[%clk 0:03:06.5]} 7.
Be3 {[%clk 0:03:02.8]} 7... a6 {[%clk 0:03:06.4]} 8. Qd2 {[%clk 0:03:01.9]} 8...
Rb8 {[%clk 0:03:06.9]} 9. h4 {[%clk 0:03:02.7]} 9... h5 {[%clk 0:03:07]} 10. Rc1
{[%clk 0:02:51.3]} 10... Bd7 {[%clk 0:03:04.1]} 11. Nd1 {[%clk 0:02:47.7]} 11...
e6 {[%clk 0:02:38.6]} 12. Bh6 {[%clk 0:02:12.3]} 12... d5 {[%clk 0:02:17.3]} 13.
e5 {[%clk 0:01:55.4]} 13... Ne8 {[%clk 0:02:14.9]} 14. g4 {[%clk 0:01:56.1]}
14... hxg4 {[%clk 0:01:41.9]} 15. fxg4 {[%clk 0:01:45.5]} 15... f6 {[%clk
0:01:39.1]} 16. Bxg7 {[%clk 0:01:35.9]} 16... Nxg7 {[%clk 0:01:30.5]} 17. h5
{[%clk 0:01:27.4]} 17... g5 {[%clk 0:01:15.9]} 18. Bg2 {[%clk 0:01:05.9]} 18...
fxe5 {[%clk 0:01:12.2]} 19. cxd5 {[%clk 0:01:05.9]} 19... Nxd4 {[%clk 0:01:06]}
20. Nxd4 {[%clk 0:01:03.9]} 20... exd4 {[%clk 0:01:06.5]} 21. h6 {[%clk
0:00:54.5]} 21... Ne8 {[%clk 0:00:59.3]} 22. Qxd4 {[%clk 0:00:50.5]} 22... Qf6
{[%clk 0:00:45.2]} 23. Qxf6 {[%clk 0:00:48.6]} 23... Rxf6 {[%clk 0:00:41.6]} 24.
Ne3 {[%clk 0:00:46.2]} 24... Kh7 {[%clk 0:00:34.6]} 25. Be4+ {[%clk 0:00:46]}
25... Kh8 {[%clk 0:00:34.2]} 26. Rh5 {[%clk 0:00:39]} 26... Nd6 {[%clk
0:00:34.2]} 27. Rxc7 {[%clk 0:00:30.1]} 27... Nxe4 {[%clk 0:00:24.8]} 28. Rxd7
{[%clk 0:00:30.8]} 28... exd5 {[%clk 0:00:21.5]} 29. Rxd5 {[%clk 0:00:26.4]}
29... Re8 {[%clk 0:00:21.3]} 30. Rh3 {[%clk 0:00:16.4]} 30... Nf2 {[%clk
0:00:21.7]} 31. Rg3 {[%clk 0:00:16.5]} 31... Nxg4 {[%clk 0:00:22.4]} 32. Rxg4
{[%clk 0:00:16.3]} 32... Rxe3+ {[%clk 0:00:23.4]} 33. Kd2 {[%clk 0:00:18.2]}
33... Rh3 {[%clk 0:00:23.3]} 34. Rgxg5 {[%clk 0:00:17]} 34... Rf2+ {[%clk
0:00:22.7]} 35. Kc1 {[%clk 0:00:18.4]} 35... Rh1+ {[%clk 0:00:23.2]} 36. Rd1
{[%clk 0:00:19.5]} 36... Rxd1+ {[%clk 0:00:20.9]} 37. Kxd1 {[%clk 0:00:21.4]}
37... Rf7 {[%clk 0:00:20.9]} 38. Kc2 {[%clk 0:00:20]} 38... Kh7 {[%clk
0:00:22.1]} 39. Rg7+ {[%clk 0:00:20.7]} 39... Rxg7 {[%clk 0:00:22.8]} 40. hxg7
{[%clk 0:00:22.6]} 40... Kxg7 {[%clk 0:00:24.1]} 41. Kc3 {[%clk 0:00:24.5]}
41... Kf6 {[%clk 0:00:25.2]} 42. Kb4 {[%clk 0:00:26]} 42... b6 {[%clk
0:00:25.4]} 43. a4 {[%clk 0:00:26.5]} 43... Ke6 {[%clk 0:00:24.6]} 44. a5 {[%clk
0:00:28.4]} 44... Kd6 {[%clk 0:00:02.7]} 45. axb6 {[%clk 0:00:26.8]} 45... Kc6
{[%clk 0:00:03.9]} 46. Ka5 {[%clk 0:00:28.1]} 46... Kb7 {[%clk 0:00:04.2]} 47.
b3 {[%clk 0:00:28.2]} 1-0

[Event "*** Titled Tuesday 3|2 Blitz"]
[Site "Chess.com"]
[Date "2016.05.03"]
[Round "7"]
[White "Usurpov"]
[Black "rasool78"]
[Result "1-0"]
[WhiteElo "2337"]
[BlackElo "2183"]
[TimeControl "180+2"]
[EndTime "12:33:26 PDT"]
[Termination "Usurpov won on time"]

1. e4 {[%clk 0:03:01.9]} 1... g6 {[%clk 0:03:01.9]} 2. d4 {[%clk 0:03:02.2]}
2... Bg7 {[%clk 0:03:02.8]} 3. Nc3 {[%clk 0:03:03.3]} 3... c5 {[%clk 0:03:04.3]}
4. d5 {[%clk 0:03:02]} 4... Bxc3+ {[%clk 0:03:03.7]} 5. bxc3 {[%clk 0:03:02.6]}
5... Qa5 {[%clk 0:03:05.1]} 6. Bd2 {[%clk 0:03:02.5]} 6... d6 {[%clk 0:03:05.6]}
7. c4 {[%clk 0:03:01.1]} 7... Qa3 {[%clk 0:03:01.7]} 8. Bd3 {[%clk 0:02:59.6]}
8... Nf6 {[%clk 0:03:00.9]} 9. Ne2 {[%clk 0:02:56.1]} 9... Nbd7 {[%clk
0:02:46.8]} 10. Nc3 {[%clk 0:02:52.7]} 10... a6 {[%clk 0:02:13.2]} 11. O-O
{[%clk 0:02:42.2]} 11... O-O {[%clk 0:01:41.8]} 12. f4 {[%clk 0:02:36.9]} 12...
b5 {[%clk 0:01:31.4]} 13. Qe2 {[%clk 0:02:21.3]} 13... bxc4 {[%clk 0:01:18.2]}
14. Bxc4 {[%clk 0:02:22]} 14... Nb6 {[%clk 0:01:17.9]} 15. e5 {[%clk 0:02:16.1]}
15... Nxc4 {[%clk 0:01:05.7]} 16. Qxc4 {[%clk 0:02:15.3]} 16... Nd7 {[%clk
0:00:51.7]} 17. Rab1 {[%clk 0:02:06]} 17... Qa5 {[%clk 0:00:43.8]} 18. Ne4
{[%clk 0:02:03.5]} 18... Qc7 {[%clk 0:00:43.3]} 19. Bc3 {[%clk 0:01:59.6]} 19...
a5 {[%clk 0:00:43.5]} 20. exd6 {[%clk 0:01:45.9]} 20... exd6 {[%clk 0:00:41.3]}
21. Qb5 {[%clk 0:01:40.7]} 21... f5 {[%clk 0:00:24]} 22. Ng5 {[%clk 0:01:28.7]}
22... Ba6 {[%clk 0:00:22.9]} 23. Qc6 {[%clk 0:01:28.6]} 23... Qxc6 {[%clk
0:00:21.1]} 24. dxc6 {[%clk 0:01:29.6]} 24... Bxf1 {[%clk 0:00:22]} 25. cxd7
{[%clk 0:01:30]} 25... Bc4 {[%clk 0:00:22.9]} 26. Re1 {[%clk 0:01:22.3]} 26...
h6 {[%clk 0:00:20.5]} 27. Re7 {[%clk 0:01:19.5]} 27... Bf7 {[%clk 0:00:18.6]}
28. Ne6 {[%clk 0:01:08.8]} 28... Bxe6 {[%clk 0:00:15.6]} 29. Rg7+ {[%clk
0:01:04.6]} 29... Kh8 {[%clk 0:00:13.3]} 30. Rxg6+ {[%clk 0:01:04]} 30... Kh7
{[%clk 0:00:14.7]} 31. Rg7+ {[%clk 0:01:04.9]} 31... Kh8 {[%clk 0:00:16]} 32.
Re7+ {[%clk 0:01:05.6]} 32... Kg8 {[%clk 0:00:14.4]} 33. Rg7+ {[%clk 0:00:49.9]}
33... Kh8 {[%clk 0:00:15]} 34. Kf2 {[%clk 0:00:49.2]} 34... Rad8 {[%clk
0:00:11.4]} 35. Re7+ {[%clk 0:00:46.3]} 35... Kg8 {[%clk 0:00:11.5]} 36. Rg7+
{[%clk 0:00:43.5]} 36... Kh8 {[%clk 0:00:12.5]} 37. Rg6+ {[%clk 0:00:43.4]}
37... Kh7 {[%clk 0:00:13.4]} 38. Rg7+ {[%clk 0:00:37.3]} 38... Kh8 {[%clk
0:00:14.2]} 39. a4 {[%clk 0:00:27.7]} 39... d5 {[%clk 0:00:09.5]} 40. Be5 {[%clk
0:00:27.6]} 40... Rg8 {[%clk 0:00:06]} 41. Re7+ {[%clk 0:00:27]} 41... Rg7
{[%clk 0:00:05.3]} 42. Rxg7 {[%clk 0:00:27.7]} 42... d4 {[%clk 0:00:05.6]} 43.
Re7+ {[%clk 0:00:27.1]} 43... Kg8 {[%clk 0:00:06.4]} 44. Re8+ {[%clk 0:00:26.6]}
1-0

[Event "*** Titled Tuesday 3|2 Blitz"]
[Site "Chess.com"]
[Date "2016.05.03"]
[Round "7"]
[White "KyronGriffith"]
[Black "stuffings101"]
[Result "1-0"]
[WhiteElo "2314"]
[BlackElo "2100"]
[TimeControl "180+2"]
[EndTime "12:34:05 PDT"]
[Termination "KyronGriffith won on time"]

1. Nf3 {[%clk 0:03:01.7]} 1... Nf6 {[%clk 0:02:59.6]} 2. g3 {[%clk 0:03:00]}
2... g6 {[%clk 0:03:00.5]} 3. Bg2 {[%clk 0:03:00.9]} 3... Bg7 {[%clk 0:03:01.6]}
4. c4 {[%clk 0:03:02.5]} 4... O-O {[%clk 0:03:02.9]} 5. O-O {[%clk 0:02:59]}
5... d6 {[%clk 0:03:04.8]} 6. d4 {[%clk 0:02:59.8]} 6... c6 {[%clk 0:03:05.1]}
7. Nc3 {[%clk 0:03:00.7]} 7... Qa5 {[%clk 0:03:05.5]} 8. Bd2 {[%clk 0:02:48.9]}
8... Qh5 {[%clk 0:03:03]} 9. e4 {[%clk 0:02:47]} 9... Bg4 {[%clk 0:03:03.2]} 10.
Re1 {[%clk 0:02:31.4]} 10... Na6 {[%clk 0:03:02.6]} 11. Be3 {[%clk 0:02:23.4]}
11... e5 {[%clk 0:02:59.7]} 12. dxe5 {[%clk 0:02:10.4]} 12... dxe5 {[%clk
0:02:59.7]} 13. Qe2 {[%clk 0:02:09.9]} 13... Rfd8 {[%clk 0:02:54.2]} 14. Rad1
{[%clk 0:02:09.5]} 14... Bf8 {[%clk 0:02:46]} 15. a3 {[%clk 0:02:07.3]} 15...
Bc5 {[%clk 0:02:44.8]} 16. b4 {[%clk 0:02:04.6]} 16... Bxe3 {[%clk 0:02:44.6]}
17. Qxe3 {[%clk 0:02:06.5]} 17... Rxd1 {[%clk 0:02:42.9]} 18. Rxd1 {[%clk
0:02:08.4]} 18... Nc7 {[%clk 0:02:31.1]} 19. c5 {[%clk 0:02:00]} 19... Ne6
{[%clk 0:02:30.2]} 20. Rd6 {[%clk 0:02:00.3]} 20... Kg7 {[%clk 0:02:20.8]} 21.
Nxe5 {[%clk 0:01:33.7]} 21... Qxe5 {[%clk 0:02:15.1]} 22. h3 {[%clk 0:01:35.2]}
22... Ne8 {[%clk 0:02:00.2]} 23. f4 {[%clk 0:01:25.4]} 23... Qf6 {[%clk
0:01:42.7]} 24. hxg4 {[%clk 0:01:14.2]} 24... Nxd6 {[%clk 0:01:39.1]} 25. cxd6
{[%clk 0:01:16.1]} 25... Qd4 {[%clk 0:01:39.1]} 26. Kf2 {[%clk 0:01:11.3]} 26...
f6 {[%clk 0:01:38.7]} 27. b5 {[%clk 0:00:33.5]} 27... c5 {[%clk 0:01:28.6]} 28.
Qxd4 {[%clk 0:00:28.8]} 28... cxd4 {[%clk 0:01:28.2]} 29. Nd5 {[%clk 0:00:25.4]}
29... Rd8 {[%clk 0:01:24.5]} 30. e5 {[%clk 0:00:26.1]} 30... fxe5 {[%clk
0:01:25.6]} 31. fxe5 {[%clk 0:00:28]} 31... Rc8 {[%clk 0:01:21.8]} 32. Kf3
{[%clk 0:00:21.5]} 32... Rc2 {[%clk 0:01:17.1]} 33. Bf1 {[%clk 0:00:20]} 33...
Rb2 {[%clk 0:01:09.6]} 34. Ke4 {[%clk 0:00:19.1]} 34... Rb1 {[%clk 0:01:07.4]}
35. Bc4 {[%clk 0:00:19.4]} 35... Re1+ {[%clk 0:01:07.2]} 36. Kd3 {[%clk
0:00:20]} 36... Rxe5 {[%clk 0:01:07.7]} 37. d7 {[%clk 0:00:19.3]} 37... b6
{[%clk 0:00:58.8]} 38. a4 {[%clk 0:00:18.9]} 38... Kh6 {[%clk 0:00:55.1]} 39.
Nxb6 {[%clk 0:00:17.9]} 39... Re3+ {[%clk 0:00:45.9]} 40. Kd2 {[%clk 0:00:19.3]}
40... Nd8 {[%clk 0:00:34.8]} 41. Nc8 {[%clk 0:00:18.8]} 41... Rxg3 {[%clk
0:00:27.3]} 42. Nxa7 {[%clk 0:00:19.8]} 42... Ra3 {[%clk 0:00:24.7]} 43. Nc6
{[%clk 0:00:20]} 43... Nb7 {[%clk 0:00:17.9]} 44. a5 {[%clk 0:00:20.6]} 44...
Ra4 {[%clk 0:00:11.6]} 45. a6 {[%clk 0:00:21.8]} 1-0

[Event "*** Titled Tuesday 3|2 Blitz"]
[Site "Chess.com"]
[Date "2016.05.03"]
[Round "7"]
[White "alturas_pacificas"]
[Black "norwaytoadog"]
[Result "1/2-1/2"]
[WhiteElo "2171"]
[BlackElo "2053"]
[TimeControl "180+2"]
[EndTime "12:34:43 PDT"]
[Termination "Game drawn by repetition"]

1. d4 {[%clk 0:03:01.9]} 1... Nf6 {[%clk 0:02:59.5]} 2. Bf4 {[%clk 0:03:02.7]}
2... e6 {[%clk 0:02:58.8]} 3. e3 {[%clk 0:03:03.6]} 3... b6 {[%clk 0:02:56.3]}
4. Be2 {[%clk 0:03:03.3]} 4... Bb7 {[%clk 0:02:57]} 5. Bf3 {[%clk 0:03:04.4]}
5... d5 {[%clk 0:02:54.9]} 6. c4 {[%clk 0:03:04.7]} 6... Bb4+ {[%clk 0:02:54.1]}
7. Nc3 {[%clk 0:03:05.9]} 7... O-O {[%clk 0:02:46.3]} 8. Ne2 {[%clk 0:03:01.8]}
8... c5 {[%clk 0:02:42.3]} 9. O-O {[%clk 0:03:00.1]} 9... Nbd7 {[%clk
0:02:37.6]} 10. a3 {[%clk 0:03:00.5]} 10... Bxc3 {[%clk 0:02:36.9]} 11. bxc3
{[%clk 0:03:02.4]} 11... Ne4 {[%clk 0:02:32.5]} 12. cxd5 {[%clk 0:02:52.9]}
12... exd5 {[%clk 0:02:31.4]} 13. Qc2 {[%clk 0:02:44.5]} 13... Ndf6 {[%clk
0:02:28.1]} 14. Rfd1 {[%clk 0:02:42.1]} 14... Qe7 {[%clk 0:02:24.5]} 15. Ng3
{[%clk 0:02:37.7]} 15... Nxg3 {[%clk 0:02:18.6]} 16. Bxg3 {[%clk 0:02:39.6]}
16... Rac8 {[%clk 0:02:10.9]} 17. Qd2 {[%clk 0:02:31.4]} 17... c4 {[%clk
0:02:04.6]} 18. Re1 {[%clk 0:02:30]} 18... Rfe8 {[%clk 0:02:02.7]} 19. Bh4
{[%clk 0:02:28.8]} 19... Qe6 {[%clk 0:02:00.5]} 20. Bxf6 {[%clk 0:02:27.2]}
20... Qxf6 {[%clk 0:02:00.4]} 21. a4 {[%clk 0:02:27.5]} 21... a6 {[%clk
0:01:55.9]} 22. h3 {[%clk 0:02:27.5]} 22... g6 {[%clk 0:01:53.7]} 23. Reb1
{[%clk 0:02:28]} 23... h5 {[%clk 0:01:50.7]} 24. Qb2 {[%clk 0:02:28.5]} 24...
Re6 {[%clk 0:01:50.8]} 25. Qb4 {[%clk 0:02:25.6]} 25... Rce8 {[%clk 0:01:50.9]}
26. a5 {[%clk 0:02:25]} 26... b5 {[%clk 0:01:50.3]} 27. Re1 {[%clk 0:02:16.2]}
27... Kg7 {[%clk 0:01:49]} 28. Ra2 {[%clk 0:02:12.7]} 28... Qf5 {[%clk
0:01:45.7]} 29. Qb1 {[%clk 0:02:07.4]} 29... Qg5 {[%clk 0:01:37.3]} 30. Rae2
{[%clk 0:02:03]} 30... f5 {[%clk 0:01:31.6]} 31. Qc1 {[%clk 0:01:41.1]} 31...
Qe7 {[%clk 0:01:31.5]} 32. g3 {[%clk 0:01:29.3]} 32... h4 {[%clk 0:01:29.6]} 33.
Kg2 {[%clk 0:01:28.6]} 33... hxg3 {[%clk 0:01:28.6]} 34. fxg3 {[%clk 0:01:28.6]}
34... Rh8 {[%clk 0:01:23.7]} 35. Rh1 {[%clk 0:01:22.3]} 35... Qc7 {[%clk
0:01:23.3]} 36. Kf2 {[%clk 0:01:17.8]} 36... Qxa5 {[%clk 0:01:23.3]} 37. h4
{[%clk 0:01:12.8]} 37... Qc7 {[%clk 0:01:22.4]} 38. Qc2 {[%clk 0:01:06.4]} 38...
Kf6 {[%clk 0:01:14.2]} 39. Kg2 {[%clk 0:00:54.7]} 39... a5 {[%clk 0:01:14.5]}
40. h5 {[%clk 0:00:37.3]} 40... g5 {[%clk 0:01:08.5]} 41. g4 {[%clk 0:00:36.7]}
41... Ke7 {[%clk 0:00:32.9]} 42. Qxf5 {[%clk 0:00:35.5]} 42... Rf8 {[%clk
0:00:31.9]} 43. Qxg5+ {[%clk 0:00:34.2]} 43... Kd7 {[%clk 0:00:30.4]} 44. Bxd5
{[%clk 0:00:30.8]} 44... Ref6 {[%clk 0:00:29]} 45. Qg7+ {[%clk 0:00:21.7]} 45...
R6f7 {[%clk 0:00:20.2]} 46. Qg5 {[%clk 0:00:15.8]} 46... Rf5 {[%clk 0:00:13]}
47. gxf5 {[%clk 0:00:12.9]} 47... Bxd5+ {[%clk 0:00:13.6]} 48. e4 {[%clk
0:00:11.1]} 48... Rg8 {[%clk 0:00:14.3]} 49. Qxg8 {[%clk 0:00:11.4]} 49... Bxg8
{[%clk 0:00:13.9]} 50. h6 {[%clk 0:00:12.9]} 50... Qf4 {[%clk 0:00:11.5]} 51. h7
{[%clk 0:00:12]} 51... Qg4+ {[%clk 0:00:12.4]} 52. Kf2 {[%clk 0:00:12.9]} 52...
Qf4+ {[%clk 0:00:12.8]} 53. Kg2 {[%clk 0:00:14.3]} 53... Qg4+ {[%clk 0:00:13.4]}
54. Kf2 {[%clk 0:00:14.2]} 54... Qf4+ {[%clk 0:00:14.1]} 55. Kg1 {[%clk
0:00:11.6]} 55... Qg3+ {[%clk 0:00:13.8]} 56. Kf1 {[%clk 0:00:08.6]} 56... Qf3+
{[%clk 0:00:13.6]} 57. Kg1 {[%clk 0:00:09.1]} 57... Qg3+ {[%clk 0:00:14.5]} 58.
Kf1 {[%clk 0:00:09.6]} 58... Qf3+ {[%clk 0:00:14.3]} 59. Kg1 {[%clk 0:00:10.7]}
59... Qg3+ {[%clk 0:00:14]} 60. Rg2 {[%clk 0:00:12.4]} 60... Qe1+ {[%clk
0:00:14.1]} 61. Kh2 {[%clk 0:00:13.7]} 61... Qh4+ {[%clk 0:00:11.7]} 62. Kg1
{[%clk 0:00:15.3]} 62... Qe1+ {[%clk 0:00:12.4]} 63. Kh2 {[%clk 0:00:16.8]}
63... Qh4+ {[%clk 0:00:12.4]} 64. Kg1 {[%clk 0:00:18.2]} 64... Qe1+ {[%clk
0:00:13]} 65. Kh2 {[%clk 0:00:19.6]} 1/2-1/2